bitfinex-derivatives/quotes_BTCF0:USTF0_20250411
["timestamp","ask_amount","ask_price","bid_price","bid_amount"]
[1744385326874,0.2915839,82179.0,82178.0,0.23642471]
[1744385327377,0.2915839,82179.0,82178.0,0.23651453]
[1744385327886,0.2915839,82179.0,82178.0,0.21451453]
[1744385328686,0.2915839,82179.0,82178.0,0.29961453]
[1744385329784,0.2082839,82179.0,82178.0,0.29961453]
[1744385330079,0.1827862,82187.0,82186.0,0.1217336]
[1744385330283,0.0001826,82187.0,82186.0,0.22330966]
[1744385330474,0.0001826,82187.0,82186.0,0.66920966]
[1744385330675,0.0002226,82187.0,82186.0,0.66920966]
[1744385330876,0.0001826,82187.0,82186.0,0.66963057]
[1744385331080,0.0002226,82187.0,82186.0,0.30883057]
[1744385331481,0.1219547,82187.0,82186.0,0.30883057]
[1744385331881,0.0002226,82187.0,82186.0,0.30883057]
[1744385332078,0.1219547,82187.0,82186.0,0.13923057]
[1744385332275,0.1219547,82187.0,82186.0,0.30703057]
[1744385332482,0.2909547,82187.0,82186.0,0.30703057]
[1744385332989,0.2909547,82187.0,82186.0,0.13923057]
[1744385333382,0.2909547,82187.0,82186.0,0.22203057]
[1744385333580,0.2909547,82187.0,82186.0,0.01749697]
[1744385333789,0.2909547,82187.0,82186.0,0.13923057]
[1744385335382,0.2909547,82187.0,82186.0,0.13867006]
[1744385335786,0.1692226,82187.0,82186.0,0.12067006]
[1744385336094,0.0002226,82187.0,82186.0,0.27907006]
[1744385336480,0.0001826,82187.0,82186.0,0.27907006]
[1744385336703,0.0002226,82187.0,82186.0,0.27907006]
[1744385336987,0.0001826,82187.0,82186.0,0.27907006]
[1744385337193,0.0002226,82187.0,82186.0,0.63987006]
[1744385337388,0.0001826,82187.0,82186.0,0.63987006]
[1744385337591,0.0002226,82187.0,82186.0,0.27907006]
[1744385337784,0.0788226,82187.0,82186.0,0.27907006]
[1744385338599,0.1591226,82187.0,82186.0,0.27907006]
[1744385338895,0.0788226,82187.0,82186.0,0.27907006]
[1744385339798,0.0002226,82187.0,82186.0,0.29194742]
[1744385339997,0.0001826,82187.0,82186.0,0.29194742]
[1744385340189,0.0002226,82187.0,82186.0,0.31965685]
[1744385340696,0.0002226,82187.0,82186.0,0.30838521]
[1744385341695,0.0002226,82187.0,82186.0,0.29550785]
[1744385342887,0.0001826,82187.0,82186.0,0.29550785]
[1744385343090,0.0002226,82187.0,82186.0,0.29550785]
[1744385343488,0.0002226,82187.0,82186.0,0.27350785]
[1744385348002,0.0002226,82187.0,82186.0,0.11510785]
[1744385348502,0.1219547,82187.0,82186.0,0.11510785]
[1744385349001,0.2896547,82187.0,82186.0,0.19550785]
[1744385349501,0.6504547,82187.0,82186.0,0.19550785]
[1744385349704,0.6504547,82187.0,82186.0,0.03378259]
[1744385349896,0.6504547,82187.0,82186.0,0.01643779]
[1744385350092,0.2896547,82187.0,82186.0,0.03390092]
[1744385350397,0.2896547,82187.0,82186.0,0.15563452]
[1744385351204,0.2896547,82187.0,82186.0,0.13363452]
[1744385353307,0.2896547,82187.0,82186.0,0.1217336]
[1744385353505,0.2896547,82187.0,82186.0,0.13479832]
[1744385353805,0.2896547,82187.0,82186.0,0.29959832]
[1744385354005,0.2896147,82187.0,82186.0,0.29959832]
[1744385354204,0.2896547,82187.0,82186.0,0.29959832]
[1744385354908,0.2896547,82187.0,82186.0,0.29964187]
[1744385356204,0.1679226,82187.0,82186.0,0.29964187]
[1744385356404,0.0001826,82187.0,82186.0,0.29964187]
[1744385356617,0.0002226,82187.0,82186.0,0.38504187]
[1744385356804,0.0002226,82187.0,82186.0,0.38486426]
[1744385357109,0.0001826,82187.0,82186.0,0.38486426]
[1744385357309,0.0002226,82187.0,82186.0,0.38486426]
[1744385358518,0.0002226,82187.0,82186.0,0.38483203]
[1744385359011,0.0002226,82187.0,82186.0,0.36283203]
[1744385359203,5.401e-05,82197.0,82196.0,0.1217188]
[1744385359406,0.005,82198.0,82197.0,0.1217173]
[1744385359615,0.005,82198.0,82197.0,0.13461573]
[1744385359805,0.005,82198.0,82197.0,0.1217173]
[1744385360005,0.005,82198.0,82197.0,0.2902173]
[1744385362708,0.00504,82198.0,82197.0,0.2902173]
[1744385363308,0.00504,82198.0,82197.0,0.32366152]
[1744385365913,0.00018249,82206.0,82205.0,0.1217054]
[1744385366118,0.00018249,82206.0,82205.0,0.49960361]
[1744385366309,0.00018249,82206.0,82205.0,0.73660361]
[1744385366702,0.00022249,82206.0,82205.0,0.72625]
[1744385366908,0.00022249,82206.0,82205.0,0.74259601]
[1744385367508,0.00018249,82206.0,82205.0,0.74259601]
[1744385367716,0.00022249,82206.0,82205.0,0.74259601]
[1744385368312,5.401e-05,82218.0,82217.0,0.1216877]
[1744385368611,0.005,82224.0,82223.0,0.1216788]
[1744385368811,0.005,82224.0,82223.0,0.22032481]
[1744385369017,0.1266773,82224.0,82223.0,0.30092481]
[1744385369324,0.005,82224.0,82223.0,0.30092481]
[1744385369925,0.12171711,82234.0,82231.0,0.121667]
[1744385370108,0.19961711,82234.0,82231.0,0.482467]
[1744385370308,0.1216641,82233.0,82231.0,0.645367]
[1744385370509,0.1216641,82233.0,82231.0,0.66171301]
[1744385370717,0.48268799,82232.0,82231.0,0.01634601]
[1744385370904,0.56058799,82232.0,82231.0,0.01634601]
[1744385371705,0.56058799,82232.0,82231.0,0.13801301]
[1744385371910,0.56058799,82232.0,82231.0,0.01634601]
[1744385372418,0.81058799,82232.0,82231.0,0.01634601]
[1744385372621,0.56058799,82232.0,82231.0,0.01634601]
[1744385373620,0.56058799,82232.0,82231.0,0.13801301]
[1744385373914,0.43888249,82232.0,82231.0,0.13801301]
[1744385374215,0.56058799,82232.0,82231.0,0.13801301]
[1744385374412,0.56054799,82232.0,82231.0,0.30031301]
[1744385374614,0.56058799,82232.0,82231.0,0.30031301]
[1744385375014,0.07812249,82232.0,82231.0,0.30031301]
[1744385375214,0.00022249,82232.0,82231.0,0.30031301]
[1744385375615,0.12188799,82232.0,82231.0,0.30031301]
[1744385376011,0.00022249,82232.0,82231.0,0.30031301]
[1744385377322,0.00022249,82232.0,82231.0,0.13601301]
[1744385377519,0.00022249,82232.0,82231.0,0.30331301]
[1744385377918,0.08372249,82232.0,82231.0,0.30331301]
[1744385378124,0.56618799,82232.0,82231.0,0.30331301]
[1744385378423,0.56618799,82232.0,82231.0,0.13601301]
[1744385378724,0.56618799,82232.0,82231.0,0.121667]
[1744385379121,0.1825169,82227.0,82226.0,0.0608351]
[1744385380010,0.1825169,82227.0,82226.0,0.1446351]
[1744385380519,0.1825169,82227.0,82226.0,0.0608351]
[1744385380926,0.2662169,82227.0,82226.0,0.0608351]
[1744385382135,0.2662169,82227.0,82226.0,0.1216681]
[1744385382328,0.0608431,82218.0,82205.0,0.37244639]
[1744385382627,0.1216892,82216.0,82212.0,0.1216947]
[1744385382826,0.1216892,82216.0,82211.0,0.1216965]
[1744385383029,0.121698,82210.0,82198.0,0.39774633]
[1744385383234,0.482498,82210.0,82201.0,0.0608554]
[1744385383622,0.482498,82210.0,82198.0,0.4708]
[1744385383623,0.645098,82210.0,82198.0,0.4708]
[1744385383823,0.645098,82210.0,82208.0,0.1217001]
[1744385384019,0.645098,82210.0,82208.0,0.1216998]
[1744385384327,0.645098,82210.0,82201.0,0.00018249]
[1744385384624,0.7734,82210.0,82185.0,0.28896388]
[1744385384830,0.1825996,82188.0,82187.0,0.121729]
[1744385385136,0.5433816,82197.0,82196.0,0.1217188]
[1744385385324,0.2434413,82197.0,82196.0,0.1217188]
[1744385387132,0.06091071,82201.0,82195.0,0.081]
[1744385387332,5.401e-05,82201.0,82200.0,0.1217128]
[1744385387633,0.1217104,82202.0,82201.0,0.1217099]
[1744385387927,0.18274209,82205.0,82204.0,0.1217069]
[1744385389024,0.18274209,82205.0,82204.0,0.2027069]
[1744385389528,0.18274209,82205.0,82198.0,0.0608571]
[1744385389529,0.1825685,82201.0,82200.0,0.1825684]
[1744385389927,0.1825685,82201.0,82200.0,0.2443684]
[1744385390127,0.1825685,82201.0,82200.0,0.3246684]
[1744385390128,0.0608557,82201.0,82200.0,0.3246684]
[1744385392032,0.0608539,82204.0,82201.0,0.0608549]
[1744385392236,0.12188839,82205.0,82204.0,0.1217069]
[1744385392736,0.12188839,82205.0,82204.0,0.2798069]
[1744385396041,0.12188839,82205.0,82204.0,0.2001069]
[1744385396537,0.12188839,82205.0,82204.0,0.2774069]
[1744385396934,0.00018249,82205.0,82204.0,0.2774069]
[1744385397240,0.00022249,82205.0,82204.0,0.3553069]
[1744385399232,0.00022249,82205.0,82204.0,0.2774069]
[1744385399439,0.12192789,82205.0,82204.0,0.2774069]
[1744385400244,0.00022249,82205.0,82200.0,0.0608563]
[1744385400542,0.0608565,82200.0,82199.0,0.1217143]
[1744385400943,0.1217173,82197.0,82196.0,0.3862]
[1744385401141,0.1217262,82191.0,82188.0,0.00018249]
[1744385401339,0.0608602,82195.0,82190.0,0.4216633]
[1744385401544,0.0608602,82195.0,82194.0,0.1217203]
[1744385401741,0.0608593,82197.0,82196.0,0.1217188]
[1744385401943,0.5433685,82201.0,82200.0,0.1217128]
[1744385402142,0.0002365,82205.0,82204.0,0.1217069]
[1744385402342,0.0002365,82205.0,82204.0,0.1981069]
[1744385402544,0.12188789,82205.0,82204.0,0.2589069]
[1744385402847,0.12192789,82205.0,82204.0,0.2589069]
[1744385403049,0.12192789,82205.0,82204.0,0.1825069]
[1744385403245,0.1825685,82202.0,82201.0,0.0608555]
[1744385403545,0.00022249,82205.0,82199.0,0.0608564]
[1744385403750,0.00022249,82205.0,82204.0,0.1217069]
[1744385403940,0.00018249,82205.0,82204.0,0.1217069]
[1744385404140,0.00022249,82205.0,82204.0,0.1217069]
[1744385404344,0.00022249,82205.0,82204.0,0.2809069]
[1744385404752,0.00022249,82205.0,82204.0,0.3584069]
[1744385404954,0.00018249,82205.0,82204.0,0.3584069]
[1744385405155,0.12192789,82205.0,82204.0,0.3584069]
[1744385405459,0.12192789,82205.0,82204.0,0.2809069]
[1744385405661,0.20042789,82205.0,82204.0,0.2809069]
[1744385406047,0.12192789,82205.0,82204.0,0.2809069]
[1744385406254,0.12192789,82205.0,82204.0,0.2045069]
[1744385406454,0.1825685,82201.0,82200.0,0.1217128]
[1744385406653,0.5433685,82201.0,82200.0,0.1217128]
[1744385406861,0.5433685,82201.0,82200.0,0.1979128]
[1744385407259,0.1825685,82201.0,82200.0,0.1979128]
[1744385407557,0.1825685,82201.0,82200.0,0.0762]
[1744385407764,0.1217203,82195.0,82194.0,0.1825789]
[1744385407962,0.1217291,82189.0,82188.0,0.06104759]
[1744385408157,0.1217291,82189.0,82188.0,0.00018249]
[1744385408158,0.4825291,82189.0,82188.0,0.00018249]
[1744385408854,0.5598291,82189.0,82188.0,0.12191309]
[1744385409058,0.1217291,82189.0,82188.0,0.12191309]
[1744385409568,0.1217691,82189.0,82188.0,0.28491309]
[1744385409765,0.1217691,82189.0,82188.0,0.16318249]
[1744385409967,0.6382691,82189.0,82188.0,0.00018249]
[1744385410358,0.182604,82185.0,82184.0,0.060868]
[1744385410660,0.182604,82185.0,82184.0,0.2661045]
[1744385410860,0.182604,82185.0,82184.0,0.3482045]
[1744385411059,0.51654,82189.0,82173.0,0.0608758]
[1744385411060,0.0608657,82188.0,82173.0,0.0608758]
[1744385411259,0.1217514,82176.0,82175.0,0.1438749]
[1744385411568,0.1217514,82176.0,82175.0,0.083]
[1744385412067,0.1217514,82176.0,82175.0,0.1651]
[1744385412863,0.1217514,82176.0,82175.0,0.2868499]
[1744385413955,0.1217514,82176.0,82175.0,0.083]
[1744385414260,0.1217528,82173.0,82172.0,0.00018249]
[1744385414667,0.2010528,82173.0,82172.0,0.00018249]
[1744385415467,0.2010528,82173.0,82172.0,0.12193679]
[1744385415668,0.2010528,82173.0,82172.0,0.28353679]
[1744385416968,0.1217528,82173.0,82172.0,0.28353679]
[1744385417366,0.1217928,82173.0,82172.0,0.28353679]
[1744385418763,0.1217928,82173.0,82172.0,0.08238249]
[1744385418955,0.2007928,82173.0,82172.0,0.00018249]
[1744385420166,0.2828928,82173.0,82172.0,0.00018249]
[1744385420370,0.2828928,82173.0,82172.0,0.12193679]
[1744385420572,0.2828928,82173.0,82172.0,0.20413679]
[1744385421371,0.1611,82173.0,82172.0,0.20413679]
[1744385421572,0.1611,82173.0,82172.0,0.28843679]
[1744385421871,0.08214,82173.0,82172.0,0.28843679]
[1744385422867,4e-05,82173.0,82172.0,0.28843679]
[1744385423071,0.1217928,82173.0,82172.0,0.28843679]
[1744385423364,4e-05,82173.0,82172.0,0.28843679]
[1744385423559,0.0608672,82186.0,82177.0,0.0608729]
[1744385423760,7.291e-05,82181.0,82180.0,0.1217425]
[1744385423965,0.1826026,82186.0,82185.0,0.1217351]
[1744385424165,0.0608674,82186.0,82185.0,0.2783351]
[1744385424773,0.1448674,82186.0,82185.0,0.29445567]
[1744385424967,5.401e-05,82187.0,82186.0,0.1217336]
[1744385425167,5.401e-05,82187.0,82186.0,0.73925896]
[1744385425370,0.00018249,82189.0,82188.0,0.1217306]
[1744385425575,0.00018249,82189.0,82188.0,0.13855596]
[1744385425767,0.00018249,82189.0,82188.0,0.38855596]
[1744385425964,5.401e-05,82195.0,82194.0,0.1217217]
[1744385426169,0.2176386,82204.0,82195.0,0.0608594]
[1744385426364,0.25349362,82214.0,82211.0,0.0608475]
[1744385426578,0.28976101,82219.0,82218.0,0.1216862]
[1744385426876,0.28976101,82219.0,82218.0,0.13829401]
[1744385426877,0.289707,82219.0,82218.0,0.13829401]
[1744385427179,0.289747,82219.0,82218.0,0.40441458]
[1744385427375,0.005,82224.0,82218.0,0.66892838]
[1744385427575,0.005,82224.0,82223.0,0.4824788]
[1744385427872,0.005,82224.0,82223.0,0.49908661]
[1744385428071,0.00018249,82227.0,82226.0,0.1216744]
[1744385428268,0.00018249,82227.0,82226.0,0.15440278]
[1744385428774,0.00018249,82227.0,82226.0,0.32944795]
[1744385430370,0.00018249,82227.0,82226.0,0.31284014]
[1744385430571,0.00018249,82227.0,82226.0,0.32929337]
[1744385430980,0.00018249,82227.0,82226.0,0.31284014]
[1744385431379,0.00018249,82227.0,82226.0,0.32485895]
[1744385431686,0.00018249,82227.0,82226.0,0.34138199]
[1744385431878,0.1216478,82244.0,82243.0,0.1216492]
[1744385432384,0.2002478,82244.0,82243.0,0.13776977]
[1744385433180,0.1216478,82244.0,82243.0,0.13776977]
[1744385433484,0.1216478,82244.0,82243.0,0.29566977]
[1744385433674,0.2002478,82244.0,82243.0,0.29566977]
[1744385434277,0.0786,82244.0,82243.0,0.29566977]
[1744385434477,0.005,82250.0,82246.0,0.0608221]
[1744385434681,0.005,82250.0,82249.0,0.1216403]
[1744385435085,0.00504,82250.0,82249.0,0.13776087]
[1744385435589,0.1266789,82250.0,82249.0,0.01612057]
[1744385435785,0.187499,82250.0,82249.0,0.1216403]
[1744385435984,0.00504,82250.0,82249.0,0.1216403]
[1744385436486,0.005,82250.0,82249.0,0.1216403]
[1744385436679,0.00504,82250.0,82249.0,0.1216403]
[1744385437075,0.005,82250.0,82249.0,0.1216403]
[1744385437289,0.00504,82250.0,82249.0,0.2039403]
[1744385437494,0.3608,82283.0,82268.0,0.1216122]
[1744385437783,0.3608,82283.0,82275.0,0.1216019]
[1744385437784,0.060796,82282.0,82275.0,0.1216019]
[1744385437976,0.0607988,82278.0,82275.0,0.1216019]
[1744385438176,0.1215982,82278.0,82275.0,0.13092482]
[1744385438397,0.1215979,82278.0,82275.0,0.13092482]
[1744385438582,0.0607982,82279.0,82275.0,0.13092482]
[1744385438888,0.1266004,82276.0,82275.0,0.13092482]
[1744385439187,0.005,82276.0,82275.0,0.20872482]
[1744385439682,0.00504,82276.0,82275.0,0.20872482]
[1744385439988,0.005,82276.0,82275.0,0.20872482]
[1744385440173,0.00504,82276.0,82275.0,0.20872482]
[1744385440375,0.00504,82276.0,82275.0,0.2203331]
[1744385440988,0.00023129,82285.0,82283.0,0.1215901]
[1744385441184,0.0768,82291.0,82284.0,0.060794]
[1744385441384,0.1,82300.0,82285.0,0.0804]
[1744385441686,0.10007291,82300.0,82299.0,0.1215664]
[1744385441879,0.10007291,82300.0,82299.0,0.2219264]
[1744385442080,0.1,82300.0,82299.0,0.2219264]
[1744385442281,0.17634,82300.0,82299.0,0.2219264]
[1744385442481,0.297905,82300.0,82299.0,0.3832264]
[1744385442684,0.297905,82300.0,82299.0,0.10036]
[1744385442887,0.297905,82300.0,82299.0,0.2219264]
[1744385443186,0.297905,82300.0,82299.0,0.1215664]
[1744385443578,0.297905,82300.0,82299.0,0.1105664]
[1744385443775,0.10004,82300.0,82299.0,0.1105664]
[1744385444474,5.401e-05,82310.0,82304.0,0.0607793]
[1744385444681,7.291e-05,82313.0,82312.0,0.1215472]
[1744385444877,0.3608,82320.0,82319.0,0.1215369]
[1744385445785,0.36084,82320.0,82319.0,0.2019369]
[1744385445988,4e-05,82320.0,82319.0,0.2019369]
[1744385446885,0.4446,82327.0,82326.0,0.1215266]
[1744385447678,0.3608,82327.0,82326.0,0.13057187]
[1744385447880,0.6437251,82327.0,82326.0,0.00904527]
[1744385448085,0.7044897,82327.0,82326.0,0.1215266]
[1744385448681,0.6437292,82327.0,82326.0,0.13064393]
[1744385449386,0.6437292,82327.0,82326.0,0.1215266]
[1744385449585,0.121531,82323.0,82322.0,0.1822956]
[1744385450582,0.1215472,82313.0,82300.0,0.28417767]
[1744385450890,0.1215472,82313.0,82312.0,0.1215462]
[1744385451090,0.0831,82313.0,82312.0,0.1215462]
[1744385451291,0.0607671,82321.0,82318.0,0.0607685]
[1744385451479,0.0831,82320.0,82319.0,0.1215369]
[1744385451681,0.2046354,82320.0,82319.0,0.1215369]
[1744385452081,0.2046354,82320.0,82319.0,0.13759856]
[1744385452983,0.5654354,82320.0,82319.0,0.01606166]
[1744385453291,1.1762354,82320.0,82319.0,0.01606166]
[1744385453492,0.1823157,82316.0,82315.0,0.1215414]
[1744385453687,0.2430871,82316.0,82315.0,0.1215414]
[1744385453888,0.1215428,82316.0,82315.0,0.1215414]
[1744385454282,0.0607714,82316.0,82315.0,0.1215414]
[1744385454487,0.1215813,82316.0,82315.0,0.1215414]
[1744385454690,4e-05,82316.0,82315.0,0.13745807]
[1744385454881,0.0607673,82321.0,82315.0,0.01591667]
[1744385455085,0.48238551,82323.0,82322.0,0.1215325]
[1744385455491,0.4823315,82323.0,82322.0,0.1215325]
[1744385455691,0.36084,82323.0,82322.0,0.1215325]
[1744385455891,0.36084,82323.0,82322.0,0.21654917]
[1744385456082,0.36084,82323.0,82322.0,0.29974917]
[1744385456485,0.3608,82323.0,82322.0,0.29974917]
[1744385456694,0.36084,82323.0,82322.0,0.29974917]
[1744385456895,0.3608,82323.0,82322.0,0.29974917]
[1744385457791,0.00512071,82328.0,82325.0,0.060764]
[1744385457990,0.00512071,82328.0,82327.0,0.1215251]
[1744385458192,0.00512071,82328.0,82327.0,0.1990251]
[1744385458399,0.3608,82344.0,82327.0,0.42776355]
[1744385458593,0.3608,82344.0,82343.0,0.1215015]
[1744385458793,0.4823,82344.0,82343.0,0.1215015]
[1744385459094,0.56364,82344.0,82343.0,0.1215015]
[1744385459390,0.3608,82399.0,82343.0,1.96324362]
[1744385459591,0.3608,82414.0,82396.0,0.0607111]
[1744385459793,0.0607018,82410.0,82405.0,0.1214101]
[1744385460091,0.00504,82406.0,82405.0,0.1214101]
[1744385460294,0.005,82406.0,82405.0,0.00917171]
[1744385460488,0.00013287,82418.0,82417.0,0.1213924]
[1744385460690,0.3608,82433.0,82417.0,0.43302476]
[1744385460892,0.1820761,82425.0,82417.0,0.3608]
[1744385461191,0.0606896,82427.0,82417.0,0.3608]
[1744385461397,0.060691,82424.0,82421.0,0.121386]
[1744385461690,0.1213909,82418.0,82417.0,0.3608]
[1744385461994,0.1213909,82418.0,82417.0,0.4821924]
[1744385462300,0.005,82432.0,82431.0,0.1213718]
[1744385462597,1e-07,82432.0,82431.0,0.8429718]
[1744385462891,5.401e-05,82442.0,82438.0,0.1213615]
[1744385463089,0.0772,82451.0,82438.0,0.4821615]
[1744385463284,0.02063004,82439.0,82438.0,0.4821615]
[1744385463484,0.02063004,82439.0,82438.0,0.7321615]
[1744385463485,0.02059004,82439.0,82438.0,0.7321615]
[1744385463695,0.36416493,82458.0,82438.0,0.6944]
[1744385463696,0.00024493,82458.0,82438.0,0.6944]
[1744385463897,0.0606455,82486.0,82463.0,0.0993247]
[1744385464202,0.0606544,82474.0,82463.0,0.0993247]
[1744385464390,0.0018042,82516.0,82467.0,0.3608]
[1744385464589,0.1212088,82544.0,82543.0,0.121206]
[1744385464795,0.25,82544.0,82543.0,0.32684796]
[1744385465000,0.4522232,82544.0,82536.0,0.3608]
[1744385465194,0.1212467,82544.0,82543.0,0.3608]
[1744385465387,0.25,82544.0,82536.0,0.3608]
[1744385465589,0.2095191,82537.0,82536.0,0.3608]
[1744385465995,0.0606207,82520.0,82505.0,0.3608]
[1744385466193,0.0606176,82524.0,82506.0,0.0606302]
[1744385466497,0.3608,82529.0,82512.0,0.3608]
[1744385466798,0.22339587,82522.0,82502.0,0.3608]
[1744385466995,0.22339587,82520.0,82509.0,0.3608]
[1744385467196,0.00017986,82520.0,82519.0,0.1212423]
[1744385467498,0.00017986,82520.0,82519.0,0.4820423]
[1744385467693,0.1212423,82519.0,82513.0,0.3608]
[1744385467899,0.00017986,82520.0,82513.0,0.3608]
[1744385468194,0.3608,82516.0,82504.0,0.00018171]
[1744385468411,0.07325278,82515.0,82504.0,0.00018171]
[1744385468599,0.12125,82514.0,82504.0,0.00018171]
[1744385468791,0.17813278,82515.0,82504.0,0.00018171]
[1744385468986,0.1655046,82515.0,82495.0,0.00484875]
[1744385469192,0.3915094,82510.0,82502.0,0.3608]
[1744385469394,0.1655046,82515.0,82502.0,0.4214334]
[1744385469395,0.10488,82515.0,82502.0,0.4214334]
[1744385469697,0.10488,82515.0,82502.0,0.3608]
[1744385469896,0.00017986,82520.0,82510.0,0.1212555]
[1744385470100,0.00017986,82520.0,82505.0,0.3608]
[1744385470294,0.00017986,82520.0,82507.0,0.0606299]
[1744385470491,4e-05,82515.0,82506.0,0.1212613]
[1744385470786,0.3608,82513.0,82505.0,0.3608]
[1744385470993,4e-05,82515.0,82509.0,0.1212557]
[1744385471194,4e-05,82515.0,82514.0,0.1212497]
[1744385471495,0.25,82515.0,82505.0,0.3608]
[1744385471693,0.0795,82514.0,82505.0,0.3388]
[1744385471899,0.1212688,82501.0,82500.0,0.00018171]
[1744385472192,0.1212688,82501.0,82483.0,0.0606472]
[1744385472193,0.4214318,82505.0,82483.0,0.3608]
[1744385472393,0.3608,82498.0,82487.0,0.1212887]
[1744385472593,0.0795,82497.0,82483.0,0.3608]
[1744385472797,0.0795,82497.0,82478.0,0.41026588]
[1744385472798,0.1212908,82486.0,82485.0,0.09209341]
[1744385473000,0.2407308,82486.0,82485.0,0.09209341]
[1744385473191,0.3712908,82486.0,82485.0,0.09209341]
[1744385473387,0.4907308,82486.0,82485.0,0.09209341]
[1744385473994,0.1213011,82479.0,82478.0,0.28896388]
[1744385474395,0.26369501,82480.0,82477.0,0.00018182]
[1744385474599,0.0818,82479.0,82478.0,0.1213026]
[1744385474800,0.0818,82479.0,82477.0,0.00018182]
[1744385475197,0.1213026,82478.0,82477.0,0.00018182]
[1744385475602,0.11944,82478.0,82477.0,0.00018182]
[1744385475905,0.2407426,82478.0,82477.0,0.00018182]
[1744385476103,0.5699426,82478.0,82477.0,0.00018182]
[1744385476401,0.1213144,82470.0,82469.0,0.00485028]
[1744385477703,0.1213261,82462.0,82461.0,0.00018182]
[1744385477898,0.0606624,82463.0,82447.0,0.0606738]
[1744385478201,0.1213526,82444.0,82438.0,0.3608]
[1744385479496,0.1213526,82444.0,82438.0,0.34365181]
[1744385479497,0.12136,82439.0,82438.0,0.34365181]
[1744385480106,0.1213644,82436.0,82435.0,0.00018194]
[1744385480309,0.2408044,82436.0,82435.0,0.00018194]
[1744385480998,0.36944,82436.0,82413.0,0.3608]
[1744385481202,0.1213909,82418.0,82413.0,0.3608]
[1744385482095,0.2836909,82418.0,82409.0,0.00012331]
[1744385482300,0.1214027,82410.0,82409.0,0.00012331]
[1744385482501,0.2408427,82410.0,82409.0,0.00012331]
[1744385483007,0.121416,82401.0,82391.0,0.36565487]
[1744385483602,0.1214292,82392.0,82391.0,0.36565487]
[1744385483798,0.1214292,82392.0,82391.0,0.00485487]
[1744385484207,0.1601,82394.0,82392.0,0.121429]
[1744385484406,0.2409092,82392.0,82391.0,0.00485487]
[1744385485110,0.1214292,82392.0,82391.0,0.00485487]
[1744385485297,0.2409092,82392.0,82391.0,0.00485487]
[1744385485496,0.0607211,82384.0,82381.0,0.3608]
[1744385485709,0.0762,82383.0,82381.0,0.3608]
[1744385485911,0.121444,82382.0,82381.0,0.3608]
[1744385486614,0.121444,82382.0,82366.0,0.2863675]
[1744385486615,0.1214661,82367.0,82366.0,0.2863675]
[1744385486912,0.1214675,82366.0,82365.0,0.7264564]
[1744385487207,0.08286965,82368.0,82365.0,0.7871907]
[1744385487413,0.12163636,82375.0,82374.0,0.1214558]
[1744385487608,0.00018206,82375.0,82374.0,0.3608]
[1744385487810,0.12163636,82375.0,82374.0,0.3608]
[1744385489208,0.1214661,82367.0,82366.0,0.0828]
[1744385489615,0.1214661,82367.0,82366.0,0.2042675]
[1744385489810,0.1214661,82367.0,82366.0,0.2805675]
[1744385491125,0.1214661,82367.0,82366.0,0.1591]
[1744385493920,0.1214675,82366.0,82365.0,0.0048564]
[1744385494112,0.1999675,82366.0,82365.0,1e-07]
[1744385495012,0.5607675,82366.0,82365.0,1e-07]
[1744385495519,0.8107675,82366.0,82365.0,1e-07]
[1744385496817,0.1215059,82340.0,82339.0,4e-08]
[1744385497022,0.2410659,82340.0,82339.0,4e-08]
[1744385497215,0.2410659,82340.0,82331.0,0.3608]
[1744385497521,0.1215177,82332.0,82331.0,0.33880004]
[1744385497921,0.1215577,82332.0,82331.0,0.33880004]
[1744385498430,0.1215577,82332.0,82331.0,0.46031924]
[1744385498625,0.3608,82365.0,82331.0,0.58880004]
[1744385498815,0.0657427,82354.0,82351.0,0.1214897]
[1744385499010,0.12154221,82352.0,82351.0,0.1214897]
[1744385499519,0.1214882,82352.0,82351.0,0.1214897]
[1744385499717,0.1214897,82351.0,82350.0,0.0796]
[1744385500915,0.1215162,82333.0,82332.0,0.3608]
[1744385501116,0.121528,82325.0,82324.0,0.0796]
[1744385501416,0.121528,82325.0,82324.0,0.2011295]
[1744385501813,0.1215263,82327.0,82326.0,0.1215251]
[1744385502013,0.00018217,82333.0,82330.0,0.0607596]
[1744385502208,0.0607558,82337.0,82334.0,0.0607555]
[1744385502424,0.0607558,82337.0,82336.0,0.1215118]
[1744385502820,0.0607958,82337.0,82336.0,0.1215118]
[1744385503022,0.0607958,82337.0,82336.0,0.2866118]
[1744385503721,0.0607958,82337.0,82336.0,0.1651]
[1744385504320,0.1432958,82337.0,82336.0,0.082]
[1744385504520,0.0607958,82337.0,82336.0,0.2035118]
[1744385505027,0.0607558,82337.0,82336.0,0.1815118]
[1744385505323,0.0607958,82337.0,82336.0,0.1815118]
[1744385505519,0.0607558,82337.0,82336.0,0.19863927]
[1744385505826,0.0607958,82337.0,82336.0,0.19863927]
[1744385506015,4e-05,82337.0,82336.0,0.19863927]
[1744385506323,0.1215503,82337.0,82336.0,0.19863927]
[1744385506522,0.18243117,82345.0,82344.0,0.1215]
[1744385506721,0.18243117,82345.0,82344.0,0.49942747]
[1744385507119,0.18247117,82345.0,82344.0,0.49942747]
[1744385507320,0.18247117,82345.0,82344.0,0.49966954]
[1744385507523,0.18247117,82345.0,82344.0,0.37849675]
[1744385507716,0.18247117,82345.0,82344.0,0.49999675]
[1744385507918,0.06097187,82345.0,82344.0,0.49999675]
[1744385508111,0.06097187,82345.0,82344.0,0.57849675]
[1744385508326,0.06097187,82345.0,82344.0,0.65709675]
[1744385508917,0.06093187,82345.0,82344.0,0.67288613]
[1744385509222,0.06097187,82345.0,82344.0,0.67288613]
[1744385509423,0.00022217,82345.0,82344.0,0.67296724]
[1744385509823,0.00022217,82345.0,82344.0,0.6861301]
[1744385510019,0.00018217,82345.0,82344.0,0.67296724]
[1744385510228,0.12168067,82345.0,82344.0,0.56464881]
[1744385510425,0.12168067,82345.0,82344.0,0.55146724]
[1744385510620,0.00022217,82345.0,82344.0,0.39436724]
[1744385510815,0.00022217,82345.0,82344.0,0.51586724]
[1744385511020,0.12168067,82345.0,82344.0,0.51586724]
[1744385511330,0.12172067,82345.0,82344.0,0.55506724]
[1744385511920,0.12172067,82345.0,82344.0,0.53927786]
[1744385512122,0.12172067,82345.0,82344.0,0.67380507]
[1744385512515,0.12168067,82345.0,82344.0,0.643]
[1744385512729,0.12172067,82345.0,82344.0,0.63394368]
[1744385512928,0.00022217,82345.0,82344.0,0.63394368]
[1744385513318,0.12172067,82345.0,82344.0,0.63394368]
[1744385513519,0.12168067,82345.0,82344.0,0.621]
[1744385513721,0.12172067,82345.0,82344.0,0.621]
[1744385514222,0.12172067,82345.0,82344.0,0.4995]
[1744385514436,0.12172067,82345.0,82344.0,0.1607]
[1744385514728,0.12172067,82345.0,82343.0,0.28896388]
[1744385514729,0.1215,82344.0,82343.0,0.28896388]
[1744385514926,0.2802,82344.0,82343.0,0.28896388]